bitfinex/quotes_BTCUSD_20250624
["timestamp","ask_amount","ask_price","bid_price","bid_amount"]
[1750764622220,0.0001,105440.0,105430.0,0.99362409]
[1750764622425,0.0001,105440.0,105430.0,1.21852494]
[1750764624470,0.0001,105440.0,105430.0,1.24902494]
[1750764624899,0.0001,105440.0,105430.0,1.49902494]
[1750764625140,0.0001,105440.0,105430.0,1.78174365]
[1750764625427,0.0001,105440.0,105430.0,1.49902494]
[1750764629690,0.0001,105440.0,105430.0,1.78174365]
[1750764629889,0.0001,105440.0,105430.0,1.49902494]
[1750764631658,0.28281871,105440.0,105430.0,1.25816494]
[1750764631879,0.29921871,105440.0,105430.0,1.46884494]
[1750764632730,0.0001,105440.0,105430.0,1.46884494]
[1750764633376,0.0164,105440.0,105430.0,1.24362409]
[1750764633573,0.0164,105440.0,105430.0,1.45418409]
[1750764633783,0.0001,105440.0,105430.0,1.45418409]
[1750764634405,0.29801871,105440.0,105430.0,1.45418409]
[1750764634606,0.30750205,105440.0,105430.0,1.45418409]
[1750764634815,0.34196954,105440.0,105430.0,1.05402409]
[1750764635020,0.31351871,105440.0,105430.0,1.05402409]
[1750764635227,0.0308,105440.0,105430.0,1.05402409]
[1750764635447,0.0001,105440.0,105430.0,1.05402409]
[1750764636708,0.00958334,105440.0,105430.0,1.05402409]
[1750764637174,0.0001,105440.0,105430.0,1.05402409]
[1750764637917,0.0001,105440.0,105430.0,0.84362409]
[1750764638132,0.0001,105440.0,105430.0,1.05378409]
[1750764638320,0.00958325,105440.0,105430.0,1.05378409]
[1750764638778,0.29230196,105440.0,105430.0,1.05378409]
[1750764639294,0.29230196,105440.0,105430.0,0.84362409]
[1750764639603,0.28281871,105440.0,105430.0,1.05378409]
[1750764640155,0.0001,105440.0,105430.0,1.05378409]
[1750764640339,0.0001,105440.0,105430.0,0.84362409]
[1750764640538,0.0001,105440.0,105430.0,1.05366409]
[1750764640766,0.0001,105440.0,105430.0,1.07026409]
[1750764640936,0.0001,105440.0,105430.0,0.87532409]
[1750764641139,0.0001,105440.0,105430.0,1.08540409]
[1750764641912,0.0001,105440.0,105430.0,1.06880409]
[1750764643847,0.0001,105440.0,105430.0,1.08500409]
[1750764646443,0.0001,105440.0,105430.0,1.38226365]
[1750764646647,0.0001,105440.0,105430.0,1.63174365]
[1750764647565,0.0001,105440.0,105430.0,1.78174365]
[1750764647971,0.0001,105440.0,105430.0,2.12174365]
[1750764648182,0.0001,105440.0,105430.0,2.22174365]
[1750764648388,0.0001,105440.0,105430.0,2.27174365]
[1750764648763,0.0001,105440.0,105430.0,2.26574365]
[1750764648996,0.0001,105440.0,105430.0,2.26074365]
[1750764656009,0.0001,105440.0,105430.0,2.27973365]
[1750764658417,0.0001,105440.0,105430.0,1.99701494]
[1750764658624,0.0001,105440.0,105430.0,2.27973365]
[1750764661587,0.0001,105440.0,105430.0,1.99701494]
[1750764661790,0.0001,105440.0,105430.0,2.27973365]
[1750764662240,0.0001,105440.0,105430.0,1.99701494]
[1750764662440,0.0001,105440.0,105430.0,2.27973365]
[1750764665927,0.0001,105440.0,105430.0,2.26074365]
[1750764667104,0.0001,105440.0,105430.0,1.97802494]
[1750764667316,0.0001,105440.0,105430.0,2.26074365]
[1750764669181,0.0001,105440.0,105430.0,2.96074365]
[1750764670405,0.0001,105440.0,105430.0,3.01074365]
[1750764671795,0.0001,105440.0,105430.0,3.00850365]
[1750764673558,0.0001,105440.0,105430.0,3.29122236]
[1750764673758,0.18019709,105460.0,105450.0,2.07119001]
[1750764673964,0.18065735,105460.0,105450.0,2.32909187]
[1750764674451,0.18065735,105460.0,105450.0,2.42909187]
[1750764674679,0.18065735,105460.0,105450.0,1.86365445]
[1750764674908,0.18065735,105460.0,105450.0,1.90849445]
[1750764675134,0.18065735,105460.0,105450.0,2.19121316]
[1750764675381,0.18065735,105460.0,105450.0,1.91805713]
[1750764675609,0.18065735,105460.0,105450.0,2.20077584]
[1750764676224,0.18065735,105460.0,105450.0,2.21677584]
[1750764676653,0.18065735,105460.0,105450.0,2.21077584]
[1750764676892,0.18065735,105460.0,105450.0,1.89483713]
[1750764677145,0.18065735,105460.0,105450.0,2.17755584]
[1750764677395,0.18065735,105460.0,105450.0,2.18455584]
[1750764678033,0.18065735,105460.0,105450.0,2.21615584]
[1750764678243,0.18065735,105460.0,105450.0,2.21639584]
[1750764678678,0.18065735,105460.0,105450.0,2.49911455]
[1750764679302,0.18065735,105460.0,105450.0,2.21639584]
[1750764684232,0.18065735,105460.0,105450.0,2.49911455]
[1750764686044,0.015793,105470.0,105460.0,0.01454085]
[1750764686254,0.0001,105480.0,105470.0,2.06984865]
[1750764686398,0.0001,105480.0,105470.0,2.70995051]
[1750764686610,0.00028479,105490.0,105480.0,0.65439058]
[1750764686828,0.00028479,105490.0,105480.0,1.41532986]
[1750764687032,0.00042286,105490.0,105480.0,1.48431986]
[1750764687232,0.00042286,105490.0,105480.0,1.43431986]
[1750764687501,0.00042286,105490.0,105480.0,0.96437244]
[1750764687663,0.00042286,105490.0,105480.0,0.71809244]
[1750764687869,0.00042286,105490.0,105480.0,1.41049244]
[1750764688268,0.00042286,105490.0,105480.0,1.96049244]
[1750764688468,0.01582286,105490.0,105480.0,1.96049244]
[1750764688928,0.03232286,105490.0,105480.0,1.96049244]
[1750764689227,0.31504157,105490.0,105480.0,1.30919159]
[1750764689455,0.31504157,105490.0,105480.0,1.35599159]
[1750764689576,0.03232286,105490.0,105480.0,1.35599159]
[1750764690238,0.04180171,105490.0,105480.0,1.14119159]
[1750764690498,0.31504157,105490.0,105480.0,1.35599159]
[1750764690696,0.03232286,105490.0,105480.0,1.35599159]
[1750764690870,0.03232286,105490.0,105480.0,1.35699159]
[1750764691102,0.03232286,105490.0,105480.0,1.15219159]
[1750764691307,0.31504157,105490.0,105480.0,1.26599159]
[1750764691515,0.33399954,105490.0,105480.0,1.04171175]
[1750764691715,0.34347893,105490.0,105480.0,1.26591159]
[1750764691909,0.34347884,105490.0,105480.0,1.26291159]
[1750764692403,0.34347884,105490.0,105480.0,1.27091159]
[1750764692404,0.37195984,105490.0,105480.0,1.27091159]
[1750764692608,0.38143923,105490.0,105480.0,1.27091159]
[1750764693390,0.58051014,105490.0,105480.0,1.26143175]
[1750764693586,0.89207287,105490.0,105480.0,0.4118]
[1750764693795,0.89207287,105490.0,105480.0,0.57964]
[1750764694016,0.89207287,105490.0,105480.0,0.77872987]
[1750764694227,0.89207287,105490.0,105480.0,0.56408987]
[1750764694535,0.89207287,105490.0,105480.0,0.78805025]
[1750764694748,0.88259348,105490.0,105480.0,0.78105025]
[1750764694948,0.88259348,105490.0,105480.0,0.79053045]
[1750764695177,0.88259348,105490.0,105480.0,0.58853038]
[1750764695371,0.88259348,105490.0,105480.0,0.79493038]
[1750764695588,0.88259348,105490.0,105480.0,0.79493047]
[1750764695775,0.88259348,105490.0,105480.0,0.78545045]
[1750764695917,0.88259348,105490.0,105480.0,0.78245045]
[1750764696128,0.06972089,105480.0,105470.0,0.21807056]
[1750764696333,0.34295859,105480.0,105470.0,0.53741315]
[1750764696529,0.35243906,105480.0,105470.0,0.53741315]
[1750764696733,0.0318,105480.0,105470.0,0.53741315]
[1750764696958,0.34295841,105480.0,105470.0,0.53741315]
[1750764697359,0.3334783,105480.0,105470.0,0.53741315]
[1750764697556,0.33347821,105480.0,105470.0,0.53741315]
[1750764697769,0.31451871,105480.0,105470.0,0.53741315]
[1750764698379,0.32399846,105480.0,105470.0,0.53741315]
[1750764698589,0.31451871,105480.0,105470.0,0.53741315]
[1750764699209,0.32399846,105480.0,105470.0,0.53741315]
[1750764700033,0.31451871,105480.0,105470.0,0.54041315]
[1750764700688,0.32399846,105480.0,105470.0,0.54041315]
[1750764701111,0.3429585,105480.0,105470.0,0.54041315]
[1750764701325,0.05075968,105480.0,105470.0,0.54041315]
[1750764701533,0.33347839,105480.0,105470.0,0.54441315]
[1750764701932,0.3429585,105480.0,105470.0,0.54441315]
[1750764702172,0.33347839,105480.0,105470.0,0.54441315]
[1750764702376,0.35248046,105480.0,105470.0,0.54141315]
[1750764702566,0.35248037,105480.0,105470.0,0.54141315]
[1750764702754,0.3619603,105480.0,105470.0,0.54141315]
[1750764702979,0.37144032,105480.0,105470.0,0.54641315]
[1750764703220,0.3619603,105480.0,105470.0,0.54641315]
[1750764703503,0.3619603,105480.0,105470.0,0.54241315]
[1750764703899,0.34300071,105480.0,105470.0,0.54241315]
[1750764704480,0.34300071,105480.0,105470.0,0.54841315]
[1750764705030,0.060282,105480.0,105470.0,0.54841315]
[1750764705232,0.34300071,105480.0,105470.0,0.54841315]
[1750764706687,0.35248037,105480.0,105470.0,0.54841315]
[1750764707090,0.36196012,105480.0,105470.0,0.54841315]
[1750764707301,0.35248037,105480.0,105470.0,0.54841315]
[1750764707888,0.06976166,105480.0,105470.0,0.54841315]
[1750764708154,0.35248055,105480.0,105470.0,0.54841315]
[1750764708302,0.34300071,105480.0,105470.0,0.54841315]
[1750764708660,0.060282,105480.0,105470.0,0.54841315]
[1750764708870,0.028482,105480.0,105470.0,0.54841315]
[1750764709767,0.31120071,105480.0,105470.0,0.54841315]
[1750764709976,0.32068037,105480.0,105470.0,0.54841315]
[1750764710184,0.33964023,105480.0,105470.0,0.54841315]
[1750764710380,0.34576021,105480.0,105470.0,0.54841315]
[1750764710607,0.33628037,105480.0,105470.0,0.54841315]
[1750764710841,0.34576021,105480.0,105470.0,0.54841315]
[1750764711451,0.33628037,105480.0,105470.0,0.54841315]
[1750764711731,0.34576039,105480.0,105470.0,0.54841315]
[1750764711998,0.33628046,105480.0,105470.0,0.54841315]
[1750764712323,0.34576039,105480.0,105470.0,0.54841315]
[1750764712936,0.32680071,105480.0,105470.0,0.54841315]
[1750764713160,0.33628037,105480.0,105470.0,0.54841315]
[1750764713360,0.32068037,105480.0,105470.0,0.54841315]
[1750764713564,0.03796166,105480.0,105470.0,0.54841315]
[1750764713977,0.0474415,105480.0,105470.0,0.54841315]
[1750764714379,0.03796166,105480.0,105470.0,0.54841315]
[1750764714627,0.33016021,105480.0,105470.0,0.54841315]
[1750764714802,0.31120071,105480.0,105470.0,0.54841315]
[1750764715010,0.028482,105480.0,105470.0,0.54841315]
[1750764716179,0.04744168,105480.0,105470.0,0.54841315]
[1750764716583,0.03796175,105480.0,105470.0,0.54841315]
[1750764718281,0.33016039,105480.0,105470.0,0.54841315]
[1750764718497,0.31120071,105480.0,105470.0,0.54841315]
[1750764718914,0.028482,105480.0,105470.0,0.54841315]
[1750764719590,0.03796175,105480.0,105470.0,0.54841315]
[1750764720318,0.04744177,105480.0,105470.0,0.54841315]
[1750764720542,0.04744168,105480.0,105470.0,0.54841315]
[1750764720821,0.39070108,105480.0,105470.0,0.33405315]
[1750764721033,0.39070108,105480.0,105470.0,0.05768]
[1750764721034,1.17458949,105480.0,105470.0,0.05768]
[1750764721233,1.17458949,105480.0,105470.0,0.22328]
[1750764721638,1.17458949,105480.0,105470.0,0.21828]
[1750764721844,1.17458949,105480.0,105470.0,0.21228]
[1750764722116,1.17458949,105480.0,105470.0,0.21528]
[1750764722323,1.17458949,105480.0,105470.0,0.21928]
[1750764722483,1.17458949,105480.0,105470.0,0.21628]
[1750764722855,1.17458949,105480.0,105470.0,0.21828]
[1750764723059,1.18421833,105480.0,105470.0,0.05268]
[1750764723259,1.18421833,105480.0,105470.0,0.006]
[1750764723459,1.18421833,105480.0,105470.0,0.21808]
[1750764723663,1.18421833,105480.0,105470.0,0.04868]
[1750764723863,1.18421833,105480.0,105470.0,0.21404]
[1750764724476,1.18421833,105480.0,105470.0,0.21704]
[1750764724687,1.18421833,105480.0,105470.0,0.21404]
[1750764725109,1.18421833,105480.0,105470.0,0.21304]
[1750764725675,1.27972019,105480.0,105470.0,0.04768]
[1750764725887,1.31133029,105480.0,105470.0,0.04768]
[1750764726000,1.31133029,105480.0,105470.0,0.001]
[1750764727030,1.30245222,105480.0,105470.0,0.001]
[1750764727226,1.31133027,105480.0,105470.0,0.001]
[1750764727673,1.2885935,105480.0,105470.0,0.001]
[1750764728078,0.22980856,105470.0,105460.0,0.27432]
[1750764728288,0.51252727,105470.0,105460.0,0.27432]
[1750764728752,0.79524598,105470.0,105460.0,0.04668]
[1750764729358,0.51252727,105470.0,105460.0,0.04668]
[1750764730136,0.23361147,105450.0,105440.0,0.42759966]
[1750764730280,0.51633018,105450.0,105440.0,0.73502152]
[1750764730481,0.33614955,105450.0,105440.0,0.74450495]
[1750764730872,0.34914255,105450.0,105440.0,0.74450495]
[1750764731074,0.54828896,105450.0,105440.0,0.74450495]
[1750764731275,0.26557025,105450.0,105440.0,0.74796521]
[1750764731484,0.34914255,105450.0,105440.0,0.74796521]
[1750764731885,0.55430589,105450.0,105440.0,0.74248178]
[1750764732304,0.55430589,105450.0,105440.0,0.75196521]
[1750764732510,0.56378896,105450.0,105440.0,0.75196521]
[1750764733222,0.57090715,105450.0,105440.0,0.72351465]
[1750764733424,0.84414297,105450.0,105440.0,0.72351519]
[1750764733572,0.83465999,105450.0,105440.0,0.72351519]
[1750764733777,1.16517692,105450.0,105440.0,0.05414026]
[1750764733976,1.16517692,105450.0,105440.0,0.21914026]
[1750764734178,1.16517692,105450.0,105440.0,0.21902026]
[1750764734761,1.26067878,105450.0,105440.0,0.00446026]
[1750764734973,1.26067878,105450.0,105440.0,0.00046026]
[1750764735174,1.26067878,105450.0,105440.0,0.00246026]
[1750764735567,1.26067878,105450.0,105440.0,0.00546026]
[1750764735775,1.26067878,105450.0,105440.0,0.00046026]
[1750764735976,1.26067878,105450.0,105440.0,0.00146026]
[1750764739780,1.36055878,105450.0,105440.0,0.00146026]
[1750764739978,1.64327749,105450.0,105440.0,0.00146026]
[1750764740238,1.36055878,105450.0,105440.0,0.00146026]
[1750764740658,1.64327749,105450.0,105440.0,0.00146026]
[1750764740864,0.22936521,105440.0,105430.0,0.04668]
[1750764741086,0.79480263,105440.0,105430.0,0.04668]
[1750764741562,0.51208392,105440.0,105430.0,0.04668]
[1750764742802,0.51208392,105440.0,105430.0,0.04768]
[1750764743089,0.79480263,105440.0,105430.0,0.04768]
[1750764743488,0.51212994,105440.0,105430.0,0.04768]
[1750764744029,1.13484865,105440.0,105430.0,0.04768]
[1750764744868,0.66491309,105440.0,105430.0,0.04768]
[1750764745069,1.39495051,105440.0,105430.0,0.001]
[1750764748743,1.422768,105440.0,105430.0,0.001]
[1750764749210,0.1991841,105430.0,105420.0,0.0002]
[1750764749436,0.48190281,105430.0,105420.0,0.0002]
[1750764750458,0.51040681,105430.0,105420.0,0.0002]
[1750764752425,0.82582552,105430.0,105420.0,0.0002]
[1750764752842,0.19924053,105400.0,105390.0,0.0311]
[1750764753058,0.77416543,105400.0,105390.0,0.04588]
[1750764753255,1.14686543,105400.0,105390.0,0.0002]
[1750764753691,1.17537543,105400.0,105390.0,0.0002]
[1750764754247,1.17542142,105400.0,105390.0,0.0002]
[1750764754441,1.18513589,105400.0,105390.0,0.0002]
[1750764755061,1.28063775,105400.0,105390.0,0.0002]
[1750764755232,1.3451786,105400.0,105390.0,0.0002]
[1750764755430,1.3451786,105400.0,105390.0,0.0022]
[1750764755825,1.3451786,105400.0,105390.0,0.0002]
[1750764756260,1.5103386,105400.0,105390.0,0.0002]
[1750764756488,0.71620033,105400.0,105390.0,0.0002]
[1750764756695,0.86100271,105400.0,105390.0,0.0002]
[1750764756912,0.86100271,105400.0,105390.0,0.0316]
[1750764758955,1.14372142,105400.0,105390.0,0.0002]
[1750764759149,1.17612142,105400.0,105390.0,0.0002]
[1750764759371,1.27162328,105400.0,105390.0,0.0002]
[1750764761356,0.86100271,105400.0,105390.0,0.0002]
[1750764762303,1.02064832,105400.0,105390.0,0.0002]
[1750764762729,0.578284,105400.0,105390.0,0.0002]
[1750764763097,1.02064832,105400.0,105390.0,0.0315]
[1750764764208,1.02064832,105400.0,105390.0,0.22127132]
[1750764764418,0.0390432,105400.0,105390.0,0.50082985]
[1750764764617,0.05801753,105400.0,105390.0,0.56548598]
[1750764764832,0.39801753,105400.0,105390.0,0.56548598]
[1750764765050,0.40750501,105400.0,105390.0,0.62548598]
[1750764765263,0.60674599,105400.0,105390.0,0.62548598]
[1750764765476,1.03013616,105400.0,105390.0,0.59702156]
[1750764765636,1.03013616,105400.0,105390.0,0.60650985]
[1750764765850,1.02913616,105400.0,105390.0,0.61599787]
[1750764766465,1.02913616,105400.0,105390.0,0.40523787]
[1750764766689,1.02913616,105400.0,105390.0,0.61595787]
[1750764766874,1.02913616,105400.0,105390.0,0.60098156]
[1750764767084,1.01016129,105400.0,105390.0,0.40160186]
[1750764767302,1.00067363,105400.0,105390.0,0.40160186]
[1750764767543,1.00067363,105400.0,105390.0,0.40360186]
[1750764767966,1.00067363,105400.0,105390.0,0.59337318]
[1750764768172,1.00067363,105400.0,105390.0,0.61235021]
[1750764768590,1.00067363,105400.0,105390.0,0.62183859]
[1750764769062,1.00067363,105400.0,105390.0,0.60286174]
[1750764769275,1.00067363,105400.0,105390.0,0.41309042]
[1750764769492,1.00067363,105400.0,105390.0,0.41109042]
[1750764769915,1.00067363,105400.0,105390.0,0.41409042]
[1750764770346,1.00067363,105400.0,105390.0,0.60386174]
[1750764770570,1.01016111,105400.0,105390.0,0.6228385]
[1750764770814,1.01016111,105400.0,105390.0,0.64181463]
[1750764771046,0.40650501,105400.0,105390.0,0.641814]
[1750764771259,0.59625896,105400.0,105390.0,0.63232607]
[1750764771705,0.59625896,105400.0,105390.0,0.641814]
[1750764771929,0.40650564,105400.0,105390.0,0.641814]
[1750764772394,0.39701762,105400.0,105390.0,0.641814]
[1750764774374,0.40650501,105400.0,105390.0,0.641814]
[1750764774995,0.39701753,105400.0,105390.0,0.641814]
[1750764775420,0.40650501,105400.0,105390.0,0.641814]
[1750764776747,0.39701726,105400.0,105390.0,0.641814]
[1750764776955,0.37804293,105400.0,105390.0,0.791814]
[1750764777396,0.39701744,105400.0,105390.0,0.791814]
[1750764777810,0.38753014,105400.0,105390.0,0.791814]
[1750764778610,0.40650501,105400.0,105390.0,0.791814]
[1750764778800,0.40650501,105400.0,105390.0,0.39326156]
[1750764778801,0.84887005,105400.0,105390.0,0.39326156]
[1750764778988,1.03862337,105400.0,105390.0,0.30724799]
[1750764779235,1.03862337,105400.0,105390.0,0.51672799]
[1750764780081,1.03862337,105400.0,105390.0,0.52621619]
[1750764780487,1.02913616,105400.0,105390.0,0.52621619]
[1750764780734,1.01964877,105400.0,105390.0,0.52621619]
[1750764780908,1.01016129,105400.0,105390.0,0.49775132]
[1750764781119,1.01016129,105400.0,105390.0,0.49103979]
[1750764781318,1.01016129,105400.0,105390.0,0.51702817]
[1750764781551,1.00067363,105400.0,105390.0,0.49805132]
[1750764781719,1.00067363,105400.0,105390.0,0.51702826]
[1750764781969,1.00067363,105400.0,105390.0,0.52651655]
[1750764782179,0.55830931,105400.0,105390.0,0.52651655]
[1750764782331,1.00067363,105400.0,105390.0,0.50753988]
[1750764782537,1.00067363,105400.0,105390.0,0.51702835]
[1750764782750,1.00067363,105400.0,105390.0,0.52651673]
[1750764783017,1.00067363,105400.0,105390.0,0.34357988]
[1750764783933,1.00067363,105400.0,105390.0,0.35306835]
[1750764784368,0.84139245,105400.0,105390.0,0.12782]
[1750764784559,0.84139245,105400.0,105390.0,0.27632]
[1750764786091,0.84139245,105400.0,105390.0,0.47557988]
[1750764786707,0.84139245,105400.0,105390.0,0.30762]
[1750764786915,1.15677559,105400.0,105390.0,0.11272]
[1750764787135,1.15677559,105400.0,105390.0,0.05272]
[1750764788364,1.15677559,105400.0,105390.0,0.04972]
[1750764789820,1.15677559,105400.0,105390.0,0.04572]
[1750764792146,0.84139245,105400.0,105390.0,0.07020856]
[1750764792363,0.84139245,105400.0,105390.0,0.04572]
[1750764792600,1.15637559,105400.0,105390.0,0.0002]
[1750764793028,0.85789245,105400.0,105390.0,0.0002]
[1750764793234,0.84139245,105400.0,105390.0,0.0002]
[1750764794598,0.84139245,105400.0,105390.0,0.0314]
[1750764794996,0.84139245,105400.0,105390.0,0.0002]
[1750764795437,0.85649245,105400.0,105390.0,0.0002]
[1750764795638,1.13957559,105400.0,105390.0,0.0002]
[1750764795850,1.15507559,105400.0,105390.0,0.0002]
[1750764798393,1.25057745,105400.0,105390.0,0.0002]
[1750764798602,1.27332439,105400.0,105390.0,0.0002]
[1750764798806,1.25057745,105400.0,105390.0,0.0002]
[1750764799013,1.27332244,105400.0,105390.0,0.0002]
[1750764800454,1.33786329,105400.0,105390.0,0.0002]
[1750764800885,1.34452498,105400.0,105390.0,0.0002]
[1750764801500,1.34452506,105400.0,105390.0,0.0002]
[1750764801706,1.34552506,105400.0,105390.0,0.0002]
[1750764801923,1.33886329,105400.0,105390.0,0.0002]
[1750764802077,1.34552501,105400.0,105390.0,0.0002]
[1750764802281,1.41972948,105400.0,105390.0,0.0002]
[1750764802484,1.448897,105400.0,105390.0,0.0002]
[1750764802836,1.33886329,105400.0,105390.0,0.0002]
[1750764805742,1.50182329,105400.0,105390.0,0.0002]
[1750764807695,1.33886329,105400.0,105390.0,0.0002]
[1750764808578,1.33884927,105400.0,105390.0,0.0002]
[1750764809546,1.3161183,105400.0,105390.0,0.0002]
[1750764810768,1.3006183,105400.0,105390.0,0.0002]
[1750764811813,1.2855183,105400.0,105390.0,0.0002]
[1750764812002,1.41308825,105400.0,105390.0,0.0002]
[1750764812313,1.32427857,105400.0,105390.0,0.0002]
[1750764813355,1.48719857,105400.0,105390.0,0.0002]
[1750764813626,1.4805383,105400.0,105390.0,0.0002]
[1750764813816,1.48720009,105400.0,105390.0,0.0002]
[1750764814116,1.13742598,105390.0,105380.0,0.0002]
[1750764814279,1.23292784,105390.0,105380.0,0.0002]
[1750764814485,1.21712784,105390.0,105380.0,0.0002]
[1750764814899,1.20092784,105390.0,105380.0,0.0002]
[1750764815151,1.22944484,105390.0,105380.0,0.0002]
[1750764822537,1.25219845,105390.0,105380.0,0.0002]
[1750764823380,1.3794684,105390.0,105380.0,0.0002]
[1750764824215,1.28399845,105390.0,105380.0,0.0002]
[1750764824418,1.26739845,105390.0,105380.0,0.0002]
[1750764824618,1.25219845,105390.0,105380.0,0.0002]
[1750764824832,0.96911531,105390.0,105380.0,0.0002]
[1750764825035,1.25219845,105390.0,105380.0,0.0002]
[1750764825189,1.25319845,105390.0,105380.0,0.0002]
[1750764825398,1.27761102,105390.0,105380.0,0.0002]
[1750764826188,1.30871102,105390.0,105380.0,0.0002]
[1750764826418,1.28429845,105390.0,105380.0,0.0002]
[1750764827049,1.2909686,105390.0,105380.0,0.0002]
[1750764827297,1.2598686,105390.0,105380.0,0.0002]
[1750764827542,1.2598686,105390.0,105380.0,0.0153]
[1750764828275,1.2598686,105390.0,105380.0,0.0312]
[1750764828886,1.25319845,105390.0,105380.0,0.0312]
[1750764829150,1.25987004,105390.0,105380.0,0.0312]
[1750764829548,1.25986983,105390.0,105380.0,0.0312]
[1750764829785,1.23044484,105390.0,105380.0,0.0312]
[1750764829988,1.2598913,105390.0,105380.0,0.0312]
[1750764830592,1.25321993,105390.0,105380.0,0.0312]
[1750764830736,1.25989255,105390.0,105380.0,0.0312]
[1750764831140,1.25989258,105390.0,105380.0,0.0312]
[1750764831553,1.25321993,105390.0,105380.0,0.0312]
[1750764833676,1.25313018,105390.0,105380.0,0.0312]
[1750764834235,1.25980289,105390.0,105380.0,0.0312]
[1750764835601,1.25313018,105390.0,105380.0,0.0312]
[1750764835795,1.25980283,105390.0,105380.0,0.0312]
[1750764836098,1.25281401,105390.0,105380.0,0.0312]
[1750764836301,1.25948689,105390.0,105380.0,0.0312]
[1750764837926,0.59114587,105390.0,105380.0,0.0312]
[1750764838122,0.52795095,105390.0,105380.0,0.24945699]
[1750764838323,0.32869089,105390.0,105380.0,0.25894582]
[1750764838564,0.67157645,105390.0,105380.0,0.25894582]
[1750764838693,0.68106483,105390.0,105380.0,0.25894582]
[1750764838886,0.87083615,105390.0,105380.0,0.24945699]
[1750764839191,0.85185984,105390.0,105380.0,0.0312]
[1750764839405,0.85185984,105390.0,105380.0,0.23047879]
[1750764839600,0.85185984,105390.0,105380.0,0.23247879]
[1750764840004,0.85185984,105390.0,105380.0,0.24196816]
[1750764840208,0.85185984,105390.0,105380.0,0.23247879]
[1750764840410,0.85085984,105390.0,105380.0,0.44015879]
[1750764840612,0.85085984,105390.0,105380.0,0.44964816]
[1750764840814,0.85085984,105390.0,105380.0,0.44015879]
[1750764841033,0.85085984,105390.0,105380.0,0.44215879]
[1750764841872,0.85085984,105390.0,105380.0,0.46113744]
[1750764842231,0.85085984,105390.0,105380.0,0.47062663]
[1750764842468,0.38749349,105390.0,105380.0,0.48011573]
[1750764842679,0.32108789,105390.0,105380.0,0.77561696]
[1750764842896,0.028517,105390.0,105380.0,0.77561696]
[1750764843513,4.599e-05,105400.0,105390.0,0.70083592]
[1750764843727,4.599e-05,105400.0,105390.0,0.79633778]
[1750764844729,0.02854999,105400.0,105390.0,0.79633778]
[1750764845176,0.02854999,105400.0,105390.0,0.80033778]
[1750764845793,0.02854999,105400.0,105390.0,1.02821778]
[1750764845996,4.599e-05,105400.0,105390.0,1.31130092]
[1750764846618,4.599e-05,105400.0,105390.0,1.23585778]
[1750764847722,4.599e-05,105400.0,105390.0,1.23885778]
[1750764853187,4.599e-05,105400.0,105390.0,1.03121778]
[1750764853392,4.599e-05,105400.0,105390.0,1.23881778]
[1750764853528,0.00953293,105400.0,105390.0,1.03121778]
[1750764853868,4.599e-05,105400.0,105390.0,1.23881778]
[1750764854110,4.599e-05,105400.0,105390.0,1.23877778]
[1750764854276,4.599e-05,105400.0,105390.0,1.03121778]
[1750764854772,0.34009512,105400.0,105390.0,0.78877778]
[1750764854993,0.5393361,105400.0,105390.0,0.77929003]
[1750764855201,0.5393361,105400.0,105390.0,0.79826634]
[1750764855407,0.52036159,105400.0,105390.0,0.67429979]
[1750764855634,0.51087411,105400.0,105390.0,0.67429979]
[1750764855856,0.51087411,105400.0,105390.0,0.68458799]
[1750764856075,0.84138645,105400.0,105390.0,0.47584]
[1750764858141,0.55830331,105400.0,105390.0,0.67509979]
[1750764858356,0.84138645,105400.0,105390.0,0.68458808]
[1750764859230,0.84138645,105400.0,105390.0,0.69407628]
[1750764859885,0.84138645,105400.0,105390.0,0.67509979]
[1750764860319,0.84138645,105400.0,105390.0,0.66561132]
[1750764861029,0.84138645,105400.0,105390.0,0.44324]
[1750764861646,0.84138645,105400.0,105390.0,0.443]
[1750764863397,0.84138645,105400.0,105390.0,0.65775988]
[1750764863670,0.84138645,105400.0,105390.0,0.67415988]
[1750764863886,0.84138645,105400.0,105390.0,0.68364835]
[1750764864325,0.84138645,105400.0,105390.0,0.67415988]
[1750764865645,0.84138645,105400.0,105390.0,0.48438856]
[1750764866912,0.84138645,105400.0,105390.0,0.67415988]
[1750764867783,0.84138645,105400.0,105390.0,0.68364835]
[1750764868227,0.55830331,105400.0,105390.0,0.68364835]
[1750764868459,0.84138645,105400.0,105390.0,0.4749]
[1750764868908,0.84138645,105400.0,105390.0,0.443]
[1750764870024,0.84138645,105400.0,105390.0,0.23488]
[1750764870244,0.85638645,105400.0,105390.0,0.44248]
[1750764870889,0.87218645,105400.0,105390.0,0.44248]
[1750764871304,1.15526959,105400.0,105390.0,0.39768]
[1750764871717,1.15526959,105400.0,105390.0,0.39068]
[1750764872136,1.15526959,105400.0,105390.0,0.39268]
[1750764872561,1.15526959,105400.0,105390.0,0.39068]
[1750764872977,0.87218645,105400.0,105390.0,0.39068]
[1750764874239,0.1992597,105390.0,105380.0,0.04496]
[1750764874443,0.78112598,105390.0,105380.0,0.20776]
[1750764874655,0.79612598,105390.0,105380.0,0.20776]
[1750764874860,0.79612598,105390.0,105380.0,0.0002]
[1750764875061,0.78112598,105390.0,105380.0,0.20776]
[1750764875262,0.76542598,105390.0,105380.0,0.20776]
[1750764875863,0.76542598,105390.0,105380.0,0.20976]
[1750764876694,0.76542598,105390.0,105380.0,0.21176]
[1750764879866,0.79393998,105390.0,105380.0,0.21176]
[1750764881608,0.79393998,105390.0,105380.0,0.24356]
[1750764884174,0.2277737,105390.0,105380.0,0.24356]
[1750764884353,0.79393998,105390.0,105380.0,0.24356]
[1750764886218,0.52034513,105390.0,105380.0,0.4428387]
[1750764886548,0.79393998,105390.0,105380.0,0.24356]
[1750764888230,0.79393998,105390.0,105380.0,0.43334933]
[1750764888872,0.79393998,105390.0,105380.0,0.24356]
[1750764890573,0.2277737,105390.0,105380.0,0.44283879]
[1750764890796,0.51085684,105390.0,105380.0,0.45232816]
[1750764891352,0.51085684,105390.0,105380.0,0.46181735]
[1750764893111,0.51085684,105390.0,105380.0,0.47130645]
[1750764893316,0.51085684,105390.0,105380.0,0.48079546]
[1750764895870,0.51085684,105390.0,105380.0,0.46181735]
[1750764900476,0.50136846,105390.0,105380.0,0.45232816]
[1750764900923,0.50136846,105390.0,105380.0,0.44283879]
[1750764901272,0.7844516,105390.0,105380.0,0.24356]
[1750764902099,0.7844516,105390.0,105380.0,0.43334933]
[1750764902295,0.50136846,105390.0,105380.0,0.4428387]
[1750764902555,0.50136846,105390.0,105380.0,0.45232798]
[1750764902756,0.50136846,105390.0,105380.0,0.43334933]
[1750764902887,0.7844516,105390.0,105380.0,0.24356]
[1750764903937,0.7844516,105390.0,105380.0,0.24348]